[Event "Rapid Tournament"]
[Site "Biel, Switzerland"]
[Date "2021.07.25"]
[Round "5.2"]
[White "Lagarde, Maxime"]
[Black "Gelfand, Boris"]
[Result "1-0"]
[TimeControl "15min + 5 sec per move"]
[WhiteTitle "GM"]
[BlackTitle "GM"]
[WhiteFideId "662399"]
[BlackFideId "2805677"]
[WhiteElo "2684"]
[BlackElo "2702"]

1. e4 {[%clk 00:15:09]} c5 {[%clk 00:15:10]} 2. Nf3 {[%clk 00:15:12]} {[%emt
00:00:02]} Nc6 {[%clk 00:15:14]} {[%emt 00:00:01]} 3. Nc3 {[%clk 00:15:14]}
{[%emt 00:00:03]} g6 {[%clk 00:15:17]} {[%emt 00:00:02]} 4. d4 {[%clk
00:15:11]} {[%emt 00:00:08]} cxd4 {[%clk 00:15:21]} {[%emt 00:00:01]} 5. Nxd4
{[%clk 00:15:14]} {[%emt 00:00:01]} Bg7 {[%clk 00:15:25]} 6. Be3 {[%clk
00:15:16]} {[%emt 00:00:03]} Nf6 {[%clk 00:15:28]} {[%emt 00:00:02]} 7. Bc4
{[%clk 00:14:59]} {[%emt 00:00:23]} O-O {[%clk 00:15:28]} {[%emt 00:00:06]} 8.
Bb3 {[%clk 00:15:01]} {[%emt 00:00:02]} d6 {[%clk 00:15:26]} {[%emt 00:00:07]}
9. h3 {[%clk 00:14:54]} {[%emt 00:00:11]} Na5 {[%clk 00:15:22]} {[%emt
00:00:10]} 10. O-O {[%clk 00:14:19]} {[%emt 00:00:41]} b6 {[%clk 00:14:37]}
{[%emt 00:00:50]} 11. Re1 {[%clk 00:11:22]} {[%emt 00:03:00]} Bb7 {[%clk
00:14:31]} {[%emt 00:00:12]} 12. Bg5 {[%clk 00:11:07]} {[%emt 00:00:19]} Nxb3
{[%clk 00:11:31]} {[%emt 00:03:06]} 13. cxb3 {[%clk 00:09:48]} {[%emt
00:01:24]} h6 {[%clk 00:11:24]} {[%emt 00:00:12]} 14. Bh4 {[%clk 00:09:05]}
{[%emt 00:00:48]} Qd7 {[%clk 00:11:14]} {[%emt 00:00:16]} 15. Qd2 {[%clk
00:08:47]} {[%emt 00:00:23]} Rac8 {[%clk 00:06:45]} {[%emt 00:04:34]} 16. Rad1
{[%clk 00:08:23]} {[%emt 00:00:29]} Kh7 {[%clk 00:06:49]} {[%emt 00:00:01]} 17.
Ndb5 {[%clk 00:04:57]} {[%emt 00:03:31]} a6 {[%clk 00:05:48]} {[%emt 00:01:06]}
18. e5 {[%clk 00:04:16]} {[%emt 00:00:45]} dxe5 {[%clk 00:05:48]} {[%emt
00:00:05]} 19. Qxd7 {[%clk 00:03:57]} {[%emt 00:00:24]} Nxd7 {[%clk 00:05:52]}
{[%emt 00:00:01]} 20. Bxe7 {[%clk 00:02:38]} {[%emt 00:01:23]} Rfe8 {[%clk
00:05:34]} {[%emt 00:00:23]} 21. Bb4 {[%clk 00:02:21]} {[%emt 00:00:22]} axb5
{[%clk 00:04:40]} {[%emt 00:01:00]} 22. Rxd7 {[%clk 00:02:24]} {[%emt
00:00:02]} Bc6 {[%clk 00:04:44]} {[%emt 00:00:01]} 23. Rxf7 {[%clk 00:02:27]}
{[%emt 00:00:02]} Kg8 {[%clk 00:04:48]} {[%emt 00:00:01]} 24. Ra7 {[%clk
00:02:10]} {[%emt 00:00:21]} e4 {[%clk 00:04:52]} {[%emt 00:00:02]} 25. Nd1
{[%clk 00:01:17]} {[%emt 00:00:57]} Ra8 {[%clk 00:03:44]} {[%emt 00:01:13]} 26.
Rxa8 {[%clk 00:01:20]} {[%emt 00:00:03]} Rxa8 {[%clk 00:03:48]} 27. a3 {[%clk
00:01:19]} {[%emt 00:00:05]} Bd5 {[%clk 00:02:07]} {[%emt 00:01:47]} 28. Bc3
{[%clk 00:01:01]} {[%emt 00:00:23]} Bxb3 {[%clk 00:02:06]} {[%emt 00:00:06]} 29.
Bxg7 {[%clk 00:01:02]} {[%emt 00:00:04]} Kxg7 {[%clk 00:01:58]} {[%emt
00:00:14]} 30. Nc3 {[%clk 00:01:03]} {[%emt 00:00:04]} Bc2 {[%clk 00:01:59]}
{[%emt 00:00:04]} 31. Nxb5 {[%clk 00:00:42]} {[%emt 00:00:26]} Kf6 {[%clk
00:01:09]} {[%emt 00:00:55]} 32. Nc3 {[%clk 00:00:44]} {[%emt 00:00:02]} Kf5
{[%clk 00:01:06]} {[%emt 00:00:08]} 33. Nd5 {[%clk 00:00:47]} {[%emt 00:00:02]}
Bd3 {[%clk 00:00:43]} {[%emt 00:00:28]} 34. Rc1 {[%clk 00:00:43]} {[%emt
00:00:10]} b5 {[%clk 00:00:26]} {[%emt 00:00:22]} 35. Rc5 {[%clk 00:00:46]} Ke5
{[%clk 00:00:25]} {[%emt 00:00:06]} 36. Ne3+ {[%clk 00:00:17]} {[%emt
00:00:34]} Kd6 {[%clk 00:00:19]} {[%emt 00:00:12]} 37. Rd5+ {[%clk 00:00:21]}
{[%emt 00:00:01]} Ke6 {[%clk 00:00:23]} 38. Rc5 {[%clk 00:00:17]} {[%emt
00:00:08]} Kd6 {[%clk 00:00:26]} {[%emt 00:00:02]} 39. Rc3 {[%clk 00:00:20]}
{[%emt 00:00:02]} Rf8 {[%clk 00:00:27]} {[%emt 00:00:05]} 40. Ng4 {[%clk
00:00:11]} {[%emt 00:00:14]} h5 {[%clk 00:00:30]} {[%emt 00:00:02]} 41. Ne3
{[%clk 00:00:16]} Ra8 {[%clk 00:00:21]} {[%emt 00:00:15]} 42. h4 {[%clk
00:00:18]} {[%emt 00:00:03]} Rf8 {[%clk 00:00:25]} 43. g3 {[%clk 00:00:21]}
{[%emt 00:00:02]} Ra8 {[%clk 00:00:21]} {[%emt 00:00:09]} 44. Ng2 {[%clk
00:00:20]} {[%emt 00:00:07]} Bc4 {[%clk 00:00:22]} {[%emt 00:00:04]} 45. Nf4
{[%clk 00:00:18]} {[%emt 00:00:07]} Bf7 {[%clk 00:00:27]} 46. Kf1 {[%clk
00:00:19]} {[%emt 00:00:04]} b4 {[%clk 00:00:25]} {[%emt 00:00:07]} 47. axb4
{[%clk 00:00:18]} {[%emt 00:00:05]} Rb8 {[%clk 00:00:30]} 48. Rc2 {[%clk
00:00:13]} {[%emt 00:00:11]} Rxb4 {[%clk 00:00:33]} {[%emt 00:00:02]} 49. Rd2+
{[%clk 00:00:14]} {[%emt 00:00:04]} Ke5 {[%clk 00:00:32]} {[%emt 00:00:06]} 50.
Ke2 {[%clk 00:00:13]} {[%emt 00:00:06]} Rb3 {[%clk 00:00:34]} {[%emt 00:00:03]}
51. Ng2 {[%clk 00:00:12]} {[%emt 00:00:05]} Bc4+ {[%clk 00:00:33]} {[%emt
00:00:06]} 52. Kd1 {[%clk 00:00:15]} {[%emt 00:00:02]} Rb6 {[%clk 00:00:35]}
{[%emt 00:00:04]} 53. Ne3 {[%clk 00:00:16]} {[%emt 00:00:04]} Be6 {[%clk
00:00:33]} {[%emt 00:00:06]} 54. Kc1 {[%clk 00:00:12]} {[%emt 00:00:10]} Ra6
{[%clk 00:00:35]} {[%emt 00:00:03]} 55. Nc2 {[%clk 00:00:08]} {[%emt 00:00:09]}
Bb3 {[%clk 00:00:31]} {[%emt 00:00:09]} 56. Kb1 {[%clk 00:00:10]} {[%emt
00:00:04]} Ba2+ {[%clk 00:00:35]} 57. Kc1 {[%clk 00:00:14]} Bb3 {[%clk
00:00:39]} 58. Re2 {[%clk 00:00:12]} {[%emt 00:00:07]} Rc6 {[%clk 00:00:26]}
{[%emt 00:00:18]} 59. Kb1 {[%clk 00:00:16]} {[%emt 00:00:02]} Bc4 {[%clk
00:00:27]} {[%emt 00:00:05]} 60. Rd2 {[%clk 00:00:10]} {[%emt 00:00:10]} Bd3
{[%clk 00:00:29]} {[%emt 00:00:02]} 61. b3 {[%clk 00:00:14]} {[%emt 00:00:02]}
Kf5 {[%clk 00:00:21]} {[%emt 00:00:13]} 62. Rxd3 {[%clk 00:00:10]} {[%emt
00:00:09]} exd3 {[%clk 00:00:19]} {[%emt 00:00:08]} 63. Nd4+ {[%clk 00:00:14]}
Ke4 {[%clk 00:00:22]} {[%emt 00:00:02]} 64. Nxc6 {[%clk 00:00:18]} {[%emt
00:00:01]} Kf3 {[%clk 00:00:23]} {[%emt 00:00:03]} 65. Ne5+ {[%clk 00:00:15]}
{[%emt 00:00:07]} Kxf2 {[%clk 00:00:27]} {[%emt 00:00:01]} 66. Nxd3+ {[%clk
00:00:13]} {[%emt 00:00:06]} Kxg3 {[%clk 00:00:32]} 67. b4 {[%clk 00:00:16]}
{[%emt 00:00:03]} g5 {[%clk 00:00:34]} {[%emt 00:00:02]} 68. hxg5 {[%clk
00:00:18]} {[%emt 00:00:03]} 1-0

[Event "Rapid Tournament"]
[Site "Biel, Switzerland"]
[Date "2021.07.25"]
[Round "5.3"]
[White "Kamsky, Gata"]
[Black "Pichot, Alan"]
[Result "1-0"]
[TimeControl "15min + 5 sec per move"]
[WhiteTitle "GM"]
[BlackTitle "GM"]
[WhiteFideId "2000024"]
[BlackFideId "110973"]
[WhiteElo "2701"]
[BlackElo "2533"]

1. d4 {[%clk 00:15:06]} {[%emt 00:00:04]} Nf6 {[%clk 00:15:08]} {[%emt
00:00:03]} 2. Nf3 {[%clk 00:15:08]} {[%emt 00:00:02]} d5 {[%clk 00:15:10]}
{[%emt 00:00:03]} 3. Bf4 {[%clk 00:15:05]} {[%emt 00:00:08]} c5 {[%clk
00:15:13]} {[%emt 00:00:02]} 4. e3 {[%clk 00:15:05]} {[%emt 00:00:05]} Nc6
{[%clk 00:15:16]} {[%emt 00:00:02]} 5. Nbd2 {[%clk 00:15:01]} {[%emt 00:00:09]}
Qb6 {[%clk 00:15:03]} {[%emt 00:00:18]} 6. dxc5 {[%clk 00:14:53]} {[%emt
00:00:13]} Qxb2 {[%clk 00:15:06]} {[%emt 00:00:02]} 7. Rb1 {[%clk 00:14:44]}
{[%emt 00:00:14]} Qc3 {[%clk 00:15:10]} {[%emt 00:00:02]} 8. Bb5 {[%clk
00:14:27]} {[%emt 00:00:21]} g6 {[%clk 00:15:13]} {[%emt 00:00:02]} 9. O-O
{[%clk 00:14:18]} {[%emt 00:00:14]} Bg7 {[%clk 00:15:16]} {[%emt 00:00:03]} 10.
Nd4 {[%clk 00:14:20]} {[%emt 00:00:02]} Qxc5 {[%clk 00:14:07]} {[%emt
00:01:14]} 11. N2b3 {[%clk 00:12:52]} {[%emt 00:01:33]} Qb6 {[%clk 00:09:40]}
{[%emt 00:04:33]} 12. Na5 {[%clk 00:12:46]} {[%emt 00:00:11]} Qxa5 {[%clk
00:09:32]} {[%emt 00:00:13]} 13. Nxc6 {[%clk 00:12:48]} {[%emt 00:00:02]} bxc6
{[%clk 00:09:34]} {[%emt 00:00:03]} 14. Bxc6+ {[%clk 00:12:51]} {[%emt
00:00:02]} Bd7 {[%clk 00:09:38]} {[%emt 00:00:01]} 15. Bxa8 {[%clk 00:12:54]}
{[%emt 00:00:02]} O-O {[%clk 00:09:36]} {[%emt 00:00:07]} 16. Bb7 {[%clk
00:12:56]} {[%emt 00:00:02]} Bb5 {[%clk 00:07:47]} {[%emt 00:01:54]} 17. Qe1
{[%clk 00:11:55]} {[%emt 00:01:06]} Qa4 {[%clk 00:07:26]} {[%emt 00:00:27]} 18.
Rb4 {[%clk 00:11:58]} {[%emt 00:00:02]} Qa5 {[%clk 00:07:30]} {[%emt 00:00:02]}
19. Bc7 {[%clk 00:11:22]} {[%emt 00:00:40]} Qxc7 {[%clk 00:07:30]} {[%emt
00:00:06]} 20. Rxb5 {[%clk 00:11:25]} {[%emt 00:00:02]} e6 {[%clk 00:05:51]}
{[%emt 00:01:44]} 21. Qa5 {[%clk 00:10:44]} {[%emt 00:00:45]} Qxc2 {[%clk
00:05:54]} {[%emt 00:00:03]} 22. Rc5 {[%clk 00:10:43]} {[%emt 00:00:05]} Qb2
{[%clk 00:05:45]} {[%emt 00:00:15]} 23. Qxa7 {[%clk 00:10:26]} {[%emt
00:00:22]} Ne4 {[%clk 00:05:12]} {[%emt 00:00:38]} 24. Rc6 {[%clk 00:07:17]}
{[%emt 00:03:13]} Bc3 {[%clk 00:03:32]} {[%emt 00:01:46]} 25. Rb6 {[%clk
00:04:55]} {[%emt 00:02:28]} Qc2 {[%clk 00:02:54]} {[%emt 00:00:43]} 26. Qa3
{[%clk 00:03:21]} {[%emt 00:01:38]} Be5 {[%clk 00:01:53]} {[%emt 00:01:07]} 27.
Rc6 {[%clk 00:02:02]} {[%emt 00:01:24]} Qe2 {[%clk 00:01:20]} {[%emt 00:00:38]}
28. Ba6 {[%clk 00:01:36]} {[%emt 00:00:31]} Qh5 {[%clk 00:01:23]} {[%emt
00:00:02]} 29. h3 {[%clk 00:01:27]} {[%emt 00:00:13]} Bb8 {[%clk 00:00:30]}
{[%emt 00:00:58]} 30. Qb2 {[%clk 00:01:17]} {[%emt 00:00:15]} Be5 {[%clk
00:00:20]} {[%emt 00:00:16]} 31. Qc2 {[%clk 00:01:18]} {[%emt 00:00:04]} Bb8
{[%clk 00:00:13]} {[%emt 00:00:13]} 32. Bd3 {[%clk 00:01:01]} {[%emt 00:00:21]}
Nf6 {[%clk 00:00:10]} {[%emt 00:00:08]} 33. Qb2 {[%clk 00:00:52]} {[%emt
00:00:14]} Be5 {[%clk 00:00:13]} {[%emt 00:00:02]} 34. Qe2 {[%clk 00:00:54]}
{[%emt 00:00:02]} Qh4 {[%clk 00:00:17]} {[%emt 00:00:02]} 35. Rfc1 {[%clk
00:00:54]} {[%emt 00:00:04]} Qa4 {[%clk 00:00:10]} {[%emt 00:00:13]} 36. Rc8
{[%clk 00:00:57]} {[%emt 00:00:02]} Rxc8 {[%clk 00:00:14]} {[%emt 00:00:01]} 37.
Rxc8+ {[%clk 00:01:01]} {[%emt 00:00:02]} Kg7 {[%clk 00:00:18]} 38. Rc1 {[%clk
00:00:57]} {[%emt 00:00:09]} Qa3 {[%clk 00:00:19]} {[%emt 00:00:04]} 39. Rb1
{[%clk 00:00:57]} {[%emt 00:00:05]} Bc7 {[%clk 00:00:16]} {[%emt 00:00:09]} 40.
g3 {[%clk 00:00:56]} {[%emt 00:00:05]} Be5 {[%clk 00:00:18]} {[%emt 00:00:03]}
41. Rb7 {[%clk 00:00:53]} {[%emt 00:00:08]} h5 {[%clk 00:00:14]} {[%emt
00:00:09]} 42. Qc2 {[%clk 00:00:52]} {[%emt 00:00:06]} Qa5 {[%clk 00:00:10]}
{[%emt 00:00:10]} 43. Kg2 {[%clk 00:00:47]} {[%emt 00:00:09]} d4 {[%clk
00:00:09]} {[%emt 00:00:06]} 44. e4 {[%clk 00:00:44]} {[%emt 00:00:07]} h4
{[%clk 00:00:13]} {[%emt 00:00:02]} 45. Rb5 {[%clk 00:00:45]} {[%emt 00:00:04]}
Qe1 {[%clk 00:00:08]} {[%emt 00:00:10]} 46. Rxe5 {[%clk 00:00:48]} {[%emt
00:00:02]} hxg3 {[%clk 00:00:12]} {[%emt 00:00:02]} 47. fxg3 {[%clk 00:00:51]}
{[%emt 00:00:02]} Nd5 {[%clk 00:00:16]} 48. Rxd5 {[%clk 00:00:52]} {[%emt
00:00:03]} exd5 {[%clk 00:00:20]} {[%emt 00:00:01]} 49. exd5 {[%clk 00:00:56]}
{[%emt 00:00:01]} 1-0

[Event "Rapid Tournament"]
[Site "Biel, Switzerland"]
[Date "2021.07.25"]
[Round "5.4"]
[White "Keymer, Vincent"]
[Black "Nihal, Sarin"]
[Result "0-1"]
[TimeControl "15min + 5 sec per move"]
[WhiteTitle "GM"]
[BlackTitle "GM"]
[WhiteFideId "12940690"]
[BlackFideId "25092340"]
[WhiteElo "2543"]
[BlackElo "2418"]

1. Nf3 {[%clk 00:15:08]} {[%emt 00:00:02]} g6 {[%clk 00:14:59]} {[%emt
00:00:12]} 2. d4 {[%clk 00:15:03]} {[%emt 00:00:09]} Bg7 {[%clk 00:15:01]}
{[%emt 00:00:02]} 3. c4 {[%clk 00:14:35]} {[%emt 00:00:34]} d6 {[%clk
00:15:02]} {[%emt 00:00:04]} 4. Nc3 {[%clk 00:14:38]} {[%emt 00:00:02]} Nc6
{[%clk 00:15:05]} {[%emt 00:00:02]} 5. d5 {[%clk 00:14:25]} {[%emt 00:00:17]}
Ne5 {[%clk 00:15:07]} {[%emt 00:00:03]} 6. Nxe5 {[%clk 00:14:09]} {[%emt
00:00:21]} Bxe5 {[%clk 00:15:10]} {[%emt 00:00:02]} 7. e4 {[%clk 00:13:42]}
{[%emt 00:00:32]} Bg7 {[%clk 00:15:10]} {[%emt 00:00:04]} 8. Be2 {[%clk
00:13:23]} {[%emt 00:00:25]} Nf6 {[%clk 00:15:13]} {[%emt 00:00:03]} 9. Be3
{[%clk 00:13:13]} {[%emt 00:00:15]} O-O {[%clk 00:15:02]} {[%emt 00:00:15]} 10.
Qd2 {[%clk 00:13:02]} {[%emt 00:00:16]} Re8 {[%clk 00:14:54]} {[%emt 00:00:12]}
11. f3 {[%clk 00:10:56]} {[%emt 00:02:11]} a6 {[%clk 00:12:05]} {[%emt
00:02:55]} 12. h4 {[%clk 00:10:11]} {[%emt 00:00:50]} c5 {[%clk 00:09:42]}
{[%emt 00:02:28]} 13. g4 {[%clk 00:09:00]} {[%emt 00:01:16]} e6 {[%clk
00:09:46]} {[%emt 00:00:01]} 14. dxe6 {[%clk 00:08:06]} {[%emt 00:00:59]} Bxe6
{[%clk 00:09:30]} {[%emt 00:00:21]} 15. h5 {[%clk 00:07:30]} {[%emt 00:00:41]}
b5 {[%clk 00:06:43]} {[%emt 00:02:52]} 16. hxg6 {[%clk 00:06:16]} {[%emt
00:01:19]} fxg6 {[%clk 00:06:47]} {[%emt 00:00:02]} 17. cxb5 {[%clk 00:05:48]}
{[%emt 00:00:33]} d5 {[%clk 00:05:52]} {[%emt 00:01:00]} 18. exd5 {[%clk
00:05:32]} {[%emt 00:00:21]} Nxd5 {[%clk 00:05:50]} {[%emt 00:00:07]} 19. Bg5
{[%clk 00:05:34]} {[%emt 00:00:03]} Qd7 {[%clk 00:03:30]} {[%emt 00:02:24]} 20.
Ne4 {[%clk 00:04:00]} {[%emt 00:01:39]} Bd4 {[%clk 00:03:12]} {[%emt 00:00:23]}
21. bxa6 {[%clk 00:01:03]} {[%emt 00:03:02]} Rab8 {[%clk 00:03:11]} {[%emt
00:00:06]} 22. Rb1 {[%clk 00:01:01]} {[%emt 00:00:08]} Bxg4 {[%clk 00:03:04]}
{[%emt 00:00:12]} 23. a7 {[%clk 00:00:49]} {[%emt 00:00:17]} Qxa7 {[%clk
00:02:51]} {[%emt 00:00:18]} 24. Bc4 {[%clk 00:00:31]} {[%emt 00:00:22]} Qf7
{[%clk 00:01:53]} {[%emt 00:01:03]} 25. Qh2 {[%clk 00:00:20]} {[%emt 00:00:16]}
h5 {[%clk 00:00:29]} {[%emt 00:01:29]} 26. fxg4 {[%clk 00:00:16]} {[%emt
00:00:09]} Rxe4+ {[%clk 00:00:17]} {[%emt 00:00:16]} 27. Kd1 {[%clk 00:00:08]}
{[%emt 00:00:13]} Rd8 {[%clk 00:00:13]} {[%emt 00:00:09]} 28. Rf1 {[%clk
00:00:07]} {[%emt 00:00:06]} Ne3+ {[%clk 00:00:12]} {[%emt 00:00:06]} 29. Kd2
{[%clk 00:00:07]} {[%emt 00:00:06]} Qxc4 {[%clk 00:00:08]} {[%emt 00:00:09]} 30.
Bxd8 {[%clk 00:00:11]} {[%emt 00:00:01]} Qc2+ {[%clk 00:00:10]} {[%emt
00:00:03]} 0-1

[ePGN "0.1;DGT LiveChess/2.2.5"]

[Event "Rapid Tournament"]
[Site "Biel, Switzerland"]
[Date "2021.07.25"]
[Round "6.1"]
[White "Keymer, Vincent"]
[Black "Studer, Noël"]
[Result "1-0"]
[TimeControl "15min + 5 sec per move"]
[WhiteTitle "GM"]
[BlackTitle "GM"]
[WhiteFideId "12940690"]
[BlackFideId "1319620"]
[WhiteElo "2543"]
[BlackElo "2431"]

1. Nf3 {[%clk 00:15:07]} {[%emt 00:00:02]} d5 {[%clk 00:15:05]} {[%emt
00:00:06]} 2. e3 {[%clk 00:15:11]} Nf6 {[%clk 00:15:08]} {[%emt 00:00:02]} 3.
c4 {[%clk 00:15:16]} e6 {[%clk 00:15:12]} {[%emt 00:00:01]} 4. Nc3 {[%clk
00:15:19]} {[%emt 00:00:01]} dxc4 {[%clk 00:14:26]} {[%emt 00:00:51]} 5. Bxc4
{[%clk 00:15:22]} {[%emt 00:00:02]} a6 {[%clk 00:14:29]} {[%emt 00:00:02]} 6.
a4 {[%clk 00:15:00]} {[%emt 00:00:27]} c5 {[%clk 00:14:24]} {[%emt 00:00:10]} 7.
b3 {[%clk 00:14:53]} {[%emt 00:00:12]} Nc6 {[%clk 00:14:20]} {[%emt 00:00:09]}
8. Bb2 {[%clk 00:14:49]} {[%emt 00:00:10]} Be7 {[%clk 00:14:23]} {[%emt
00:00:01]} 9. O-O {[%clk 00:12:24]} {[%emt 00:02:30]} O-O {[%clk 00:14:24]}
{[%emt 00:00:04]} 10. Ne2 {[%clk 00:12:10]} {[%emt 00:00:19]} Rb8 {[%clk
00:12:51]} {[%emt 00:01:38]} 11. Ng3 {[%clk 00:10:46]} {[%emt 00:01:29]} b5
{[%clk 00:12:23]} {[%emt 00:00:33]} 12. axb5 {[%clk 00:10:44]} {[%emt
00:00:07]} axb5 {[%clk 00:12:26]} {[%emt 00:00:01]} 13. Be2 {[%clk 00:10:47]}
{[%emt 00:00:01]} Qb6 {[%clk 00:10:21]} {[%emt 00:02:10]} 14. Qb1 {[%clk
00:10:48]} {[%emt 00:00:05]} Bb7 {[%clk 00:09:55]} {[%emt 00:00:30]} 15. Ng5
{[%clk 00:10:07]} {[%emt 00:00:46]} g6 {[%clk 00:08:04]} {[%emt 00:01:57]} 16.
N5e4 {[%clk 00:09:08]} {[%emt 00:01:03]} Nxe4 {[%clk 00:08:02]} {[%emt
00:00:07]} 17. Nxe4 {[%clk 00:08:56]} {[%emt 00:00:17]} f5 {[%clk 00:08:05]}
{[%emt 00:00:03]} 18. Nc3 {[%clk 00:08:21]} {[%emt 00:00:40]} Bf6 {[%clk
00:04:36]} {[%emt 00:03:34]} 19. Rc1 {[%clk 00:06:03]} {[%emt 00:02:23]} Ba6
{[%clk 00:04:30]} {[%emt 00:00:11]} 20. Bf1 {[%clk 00:05:55]} {[%emt 00:00:13]}
Rfd8 {[%clk 00:04:28]} {[%emt 00:00:06]} 21. Nd5 {[%clk 00:05:11]} {[%emt
00:00:50]} Rxd5 {[%clk 00:04:08]} {[%emt 00:00:25]} 22. Bxf6 {[%clk 00:05:14]}
{[%emt 00:00:01]} e5 {[%clk 00:03:44]} {[%emt 00:00:30]} 23. Qb2 {[%clk
00:03:59]} {[%emt 00:01:21]} Rf8 {[%clk 00:03:43]} {[%emt 00:00:05]} 24. Bg5
{[%clk 00:03:53]} {[%emt 00:00:11]} Nb4 {[%clk 00:03:27]} {[%emt 00:00:21]} 25.
d4 {[%clk 00:02:53]} {[%emt 00:01:05]} exd4 {[%clk 00:00:56]} {[%emt 00:02:36]}
26. exd4 {[%clk 00:02:50]} {[%emt 00:00:08]} f4 {[%clk 00:00:49]} {[%emt
00:00:12]} 27. Be7 {[%clk 00:02:40]} {[%emt 00:00:15]} Rff5 {[%clk 00:00:07]}
{[%emt 00:00:46]} 28. Bxc5 {[%clk 00:02:37]} {[%emt 00:00:08]} Qd8 {[%clk
00:00:08]} {[%emt 00:00:05]} 29. Bxb4 {[%clk 00:02:32]} {[%emt 00:00:09]} Rh5
{[%clk 00:00:09]} {[%emt 00:00:04]} 30. Qe2 {[%clk 00:02:03]} {[%emt 00:00:34]}
Bb7 {[%clk 00:00:07]} {[%emt 00:00:07]} 31. Qe7 {[%clk 00:01:56]} {[%emt
00:00:11]} Qb8 {[%clk 00:00:07]} {[%emt 00:00:05]} 32. Rc7 {[%clk 00:01:57]}
{[%emt 00:00:04]} 1-0